fUST/lending_fUST_20260118
["ID","MTS","AMOUNT","RATE_DAILY","PERIOD"]
[402428507,1768675850834,-500.0,0.00016712,3]
[402428509,1768675850843,-1244.98,0.00016712,3]
[402428511,1768675850853,-500.0,0.00016712,3]
[402428513,1768675850863,-1356.45,0.00016712,3]
[402428515,1768675850873,-658.22,0.00016712,3]
[402428517,1768675850883,-500.0,0.00016712,3]
[402428519,1768675850892,-684.41,0.00016712,3]
[402428521,1768675850902,-667.89,0.00016712,3]
[402428523,1768675850911,-500.0,0.00016712,3]
[402428525,1768675850921,-1628.67,0.00016712,3]
[402428527,1768675850931,-500.0,0.00016712,3]
[402428529,1768675850940,-500.0,0.00016712,3]
[402428531,1768675850950,-500.0,0.00016712,3]
[402428534,1768675850960,-1219.0,0.00016712,3]
[402428536,1768675850969,-825.95,0.00016712,3]
[402428538,1768675850979,-937.01,0.00016712,3]
[402428540,1768675850988,-500.0,0.00016712,3]
[402428542,1768675850998,-500.0,0.00016712,3]
[402428544,1768675851007,-843.19,0.00016712,3]
[402428546,1768675851017,-947.02,0.00016712,3]
[402428548,1768675851027,-500.0,0.00016712,3]
[402428550,1768675851037,-933.84,0.00016712,3]
[402428552,1768675851047,-541.31799653,0.00016712,3]
[402428554,1768675851057,-500.0,0.00016712,3]
[402428556,1768675851067,-500.0,0.00016712,3]
[402428558,1768675851077,-1134.33,0.00016712,3]
[402428560,1768675851087,-500.0,0.00016712,3]
[402428562,1768675851098,-500.0,0.00016712,3]
[402428564,1768675851108,-1667.68,0.00016712,3]
[402428566,1768675851118,-500.0,0.00016712,3]
[402428569,1768675851128,-640.01,0.00016712,3]
[402428571,1768675851138,-500.0,0.00016712,3]
[402428573,1768675851148,-500.0,0.00016712,3]
[402428575,1768675851158,-500.0,0.00016712,3]
[402428577,1768675851167,-761.33,0.00016712,3]
[402428579,1768675851177,-500.0,0.00016712,3]
[402428581,1768675851187,-500.0,0.00016712,3]
[402428583,1768675851196,-500.0,0.00016712,3]
[402428585,1768675851206,-509.91,0.00016712,3]
[402428587,1768675851216,-500.0,0.00016712,3]
[402428589,1768675851226,-500.0,0.00016712,3]
[402428591,1768675851236,-500.0,0.00016712,3]
[402428593,1768675851245,-500.0,0.00016712,3]
[402428595,1768675851255,-1711.38,0.00016712,3]
[402428597,1768675851265,-1068.39,0.00016712,3]
[402428599,1768675851275,-500.0,0.00016712,3]
[402428601,1768675851284,-500.0,0.00016712,3]
[402428603,1768675851293,-500.0,0.00016712,3]
[402428605,1768675851303,-500.0,0.00016712,3]
[402428607,1768675851313,-500.0,0.00016712,3]
[402428609,1768675851323,-500.0,0.00016712,3]
[402428611,1768675851332,-500.0,0.00016712,3]
[402428613,1768675851342,-1264.17,0.00016712,3]
[402428615,1768675851353,-1911.06,0.00016712,3]
[402428618,1768675851363,-270.52290684,0.00016712,3]
[402428620,1768675851373,-731.23,0.00016712,3]
[402428622,1768675851383,-500.0,0.00016712,3]
[402428624,1768675851392,-2552.27,0.00016712,3]
[402428626,1768675851402,-1441.61,0.00016712,3]
[402428628,1768675851411,-1297.14,0.00016712,3]
[402428630,1768675851421,-901.56,0.00016712,3]
[402428632,1768675851430,-762.49,0.00016712,3]
[402428634,1768675851439,-1023.82,0.00016712,3]
[402428636,1768675851449,-500.0,0.00016712,3]
[402428638,1768675851458,-500.0,0.00016712,3]
[402428640,1768675851468,-500.0,0.00016712,3]
[402428642,1768675851477,-500.0,0.00016712,3]
[402428644,1768675851487,-500.0,0.00016712,3]
[402428646,1768675851497,-500.0,0.00016712,3]
[402428648,1768675851506,-500.0,0.00016712,3]
[402428674,1768675851740,-500.0,0.00016712,3]
[402428677,1768675851751,-500.0,0.00016712,3]
[402428679,1768675851761,-808.76,0.00016712,3]
[402428681,1768675851770,-500.0,0.00016712,3]
[402428683,1768675851780,-500.0,0.00016712,3]
[402428685,1768675851789,-730.43,0.00016712,3]
[402428687,1768675851798,-575.88539769,0.00016712,3]
[402428689,1768675851807,-917.73,0.00016712,3]
[402428691,1768675851816,-906.34,0.00016712,3]
[402428693,1768675851825,-500.0,0.00016712,3]
[402428695,1768675851834,-569.12,0.00016712,3]
[402428697,1768675851843,-1618.42,0.00016712,3]
[402428699,1768675851853,-500.0,0.00016712,3]
[402428701,1768675851862,-1752.95,0.00016712,3]
[402428703,1768675851871,-178.3,0.00016712,2]
[402428705,1768675851881,-697.63,0.00016712,3]
[402428707,1768675851891,-1011.8,0.00016712,3]
[402428709,1768675851900,-619.55,0.00016712,3]
[402428711,1768675851909,-575.62,0.00016712,3]
[402428713,1768675851918,-795.91,0.00016712,3]
[402428715,1768675851928,-500.0,0.00016712,3]
[402428717,1768675851937,-500.0,0.00016712,3]
[402428719,1768675851947,-669.17,0.00016712,3]
[402428721,1768675851957,-500.0,0.00016712,3]
[402428723,1768675851967,-500.0,0.00016712,3]
[402428725,1768675851980,-865.41,0.00016712,3]
[402428727,1768675851989,-500.0,0.00016712,3]
[402428729,1768675851998,-500.0,0.00016712,3]
[402428731,1768675852007,-257.23483558,0.00016712,3]
[402428733,1768675852017,-500.0,0.00016712,3]
[402428735,1768675852026,-500.0,0.00016712,3]
[402428737,1768675852036,-500.0,0.00016712,3]
[402428739,1768675852046,-1562.03,0.00016712,3]
[402428741,1768675852056,-500.0,0.00016712,3]
[402428743,1768675852066,-500.0,0.00016712,3]
[402428745,1768675852075,-500.0,0.00016712,3]
[402428747,1768675852084,-598.38,0.00016712,3]
[402428749,1768675852093,-500.0,0.00016712,3]
[402428751,1768675852103,-680.48,0.00016712,3]
[402428753,1768675852114,-1316.96,0.00016712,3]
[402428755,1768675852123,-197.65009563,0.00016712,3]
[402428758,1768675852133,-1646.11,0.00016712,3]
[402428760,1768675852143,-500.0,0.00016712,3]
[402428762,1768675852152,-500.0,0.00016712,3]
[402428764,1768675852161,-500.0,0.00016712,3]
[402428766,1768675852170,-500.0,0.00016712,3]
[402428768,1768675852179,-500.0,0.00016712,3]
[402428770,1768675852191,-595.44134723,0.00016712,3]
[402428772,1768675852201,-500.0,0.00016712,3]
[402428774,1768675852210,-500.0,0.00016712,3]
[402428776,1768675852219,-500.0,0.00016712,3]
[402428778,1768675852229,-923.82,0.00016712,3]
[402428780,1768675852238,-500.0,0.00016712,3]
[402428782,1768675852247,-539.74,0.00016712,3]
[402428784,1768675852257,-500.0,0.00016712,3]
[402428786,1768675852265,-500.0,0.00016712,3]
[402428788,1768675852275,-500.0,0.00016712,3]
[402428790,1768675852285,-500.0,0.00016712,3]
[402428792,1768675852294,-545.96,0.00016712,3]
[402428794,1768675852303,-539.86,0.00016712,3]
[402428796,1768675852313,-500.0,0.00016712,3]
[402428798,1768675852322,-500.0,0.00016712,3]
[402428800,1768675852331,-500.0,0.00016712,3]
[402428802,1768675852341,-500.0,0.00016712,3]
[402428804,1768675852350,-895.54,0.00016712,3]
[402428806,1768675852360,-500.0,0.00016712,3]
[402428808,1768675852369,-500.0,0.00016712,3]
[402428810,1768675852379,-1249.71,0.00016712,3]
[402428812,1768675852389,-500.0,0.00016712,3]
[402428814,1768675852398,-822.61,0.00016712,3]
[402428816,1768675852407,-500.0,0.00016712,3]
[402428818,1768675852416,-545.77,0.00016712,3]
[402428820,1768675852425,-500.0,0.00016712,3]
[402428822,1768675852434,-500.0,0.00016712,3]
[402428824,1768675852444,-1542.26,0.00016712,3]
[402428826,1768675852453,-500.0,0.00016712,3]
[402428828,1768675852462,-500.0,0.00016712,3]
[402428830,1768675852471,-500.0,0.00016712,3]
[402428832,1768675852481,-500.0,0.00016712,3]
[402428834,1768675852490,-739.58,0.00016712,3]
[402428836,1768675852499,-500.0,0.00016712,3]
[402428839,1768675852509,-500.0,0.00016712,3]
[402428841,1768675852518,-500.0,0.00016712,3]
[402428843,1768675852527,-500.2501329,0.00016712,3]
[402428845,1768675852537,-1833.14,0.00016712,3]
[402428847,1768675852546,-500.0,0.00016712,3]
[402428849,1768675852556,-1311.65,0.00016712,3]
[402428851,1768675852564,-500.0,0.00016712,3]
[402428853,1768675852573,-994.35,0.00016712,3]
[402428855,1768675852582,-544.42342876,0.00016712,3]
[402428857,1768675852591,-500.0,0.00016712,3]
[402428859,1768675852600,-1390.83,0.00016712,3]
[402428861,1768675852610,-500.0,0.00016712,3]
[402428863,1768675852623,-500.0,0.00016712,3]
[402428865,1768675852634,-500.0,0.00016712,3]
[402428867,1768675852643,-500.0,0.00016712,3]
[402428869,1768675852652,-395.32581344,0.00016712,3]
[402428871,1768675852662,-1684.0,0.00016712,3]
[402428873,1768675852671,-500.0,0.00016712,3]
[402428875,1768675852680,-500.0,0.00016712,3]
[402428877,1768675852689,-500.0,0.00016712,3]
[402428879,1768675852699,-500.0,0.00016712,3]
[402428881,1768675852709,-500.0,0.00016712,3]
[402428883,1768675852718,-1347.43,0.00016712,3]
[402428885,1768675852727,-500.0,0.00016712,3]
[402428887,1768675852736,-500.0,0.00016712,3]
[402428889,1768675852746,-1185.09,0.00016712,3]
[402428891,1768675852755,-500.0,0.00016712,3]
[402428893,1768675852765,-500.0,0.00016712,3]
[402428895,1768675852776,-348.9788039,0.00016712,3]
[402428897,1768675852784,-500.0,0.00016712,3]
[402428899,1768675852793,-504.66,0.00016712,3]
[402428901,1768675852803,-500.0,0.00016712,3]
[402428903,1768675852812,-500.0,0.00016712,3]
[402428905,1768675852821,-500.0,0.00016712,3]
[402428907,1768675852830,-500.0,0.00016712,3]
[402428909,1768675852840,-555.8,0.00016712,3]
[402428911,1768675852849,-500.0,0.00016712,3]
[402428913,1768675852859,-564.15,0.00016712,3]
[402428915,1768675852869,-606.33,0.00016712,3]
[402428917,1768675852878,-500.0,0.00016712,3]
[402428920,1768675852888,-500.0,0.00016712,3]
[402428922,1768675852897,-500.0,0.00016712,3]
[402428924,1768675852907,-1200.0,0.00016712,2]
[402428925,1768675852917,-500.0,0.00016712,3]
[402428927,1768675852926,-500.0,0.00016712,3]
[402428930,1768675852936,-1439.56,0.00016712,3]
[402428932,1768675852946,-500.0,0.00016712,3]
[402428934,1768675852956,-500.0,0.00016712,3]
[402428936,1768675852965,-483.43506742,0.00016712,3]
[402428938,1768675852975,-892.6,0.00016712,3]
[402428940,1768675852984,-906.85,0.00016712,3]
[402428942,1768675852993,-770.84,0.00016712,3]
[402428943,1768675853002,-500.0,0.00016712,3]
[402428946,1768675853012,-826.27,0.00016712,3]
[402428948,1768675853021,-500.0,0.00016712,3]
[402428949,1768675853031,-500.0,0.00016712,3]
[402428952,1768675853041,-500.0,0.00016712,3]
[402428954,1768675853051,-646.32,0.00016712,3]
[402428956,1768675853061,-500.0,0.00016712,3]
[402428958,1768675853071,-1431.76,0.00016712,3]
[402428960,1768675853081,-500.0,0.00016712,3]
[402428962,1768675853093,-500.0,0.00016712,3]
[402428964,1768675853102,-1218.15,0.00016712,3]
[402428965,1768675853112,-1873.13,0.00016712,3]
[402428966,1768675853121,-509.04,0.00016712,3]
[402428967,1768675853131,-741.52,0.00016712,3]
[402428968,1768675853142,-1051.96,0.00016712,3]
[402428969,1768675853152,-500.0,0.00016712,3]
[402428970,1768675853161,-500.0,0.00016712,3]
[402428971,1768675853170,-500.0,0.00016712,3]
[402428972,1768675853181,-655.97,0.00016712,3]
[402428973,1768675853191,-596.42,0.00016712,3]
[402428974,1768675853200,-500.0,0.00016712,3]
[402428975,1768675853210,-500.0,0.00016712,3]
[402428976,1768675853219,-1783.16,0.00016712,3]
[402428977,1768675853228,-600.91,0.00016712,3]
[402428978,1768675853238,-763.04,0.00016712,3]
[402428979,1768675853248,-552.3,0.00016712,3]
[402428981,1768675853258,-500.0,0.00016712,3]
[402428983,1768675853268,-544.04779014,0.00016712,3]
[402428985,1768675853278,-547.52,0.00016712,3]
[402428987,1768675853287,-500.0,0.00016712,3]
[402428989,1768675853297,-500.0,0.00016712,3]
[402428991,1768675853307,-861.47,0.00016712,3]
[402428993,1768675853317,-500.0,0.00016712,3]
[402428995,1768675853327,-696.99,0.00016712,3]
[402428997,1768675853337,-500.0,0.00016712,3]
[402428999,1768675853347,-624.31598401,0.00016712,3]
[402429001,1768675853358,-680.42,0.00016712,3]
[402429003,1768675853367,-500.0,0.00016712,3]
[402429005,1768675853377,-500.0,0.00016712,3]
[402429007,1768675853386,-524.77564492,0.00016712,3]
[402429009,1768675853396,-500.0,0.00016712,3]
[402429011,1768675853406,-486.76739107,0.00016712,3]
[402429013,1768675853416,-693.13,0.00016712,3]
[402429015,1768675853426,-500.0,0.00016712,3]
[402429017,1768675853435,-500.0,0.00016712,3]
[402429019,1768675853445,-500.0,0.00016712,3]
[402429021,1768675853454,-909.21,0.00016712,3]
[402429023,1768675853464,-1860.62,0.00016712,3]
[402429025,1768675853475,-500.0,0.00016712,3]
[402429027,1768675853485,-500.0,0.00016712,3]
[402429029,1768675853494,-880.59,0.00016712,3]
[402429031,1768675853504,-935.44,0.00016712,3]
[402429033,1768675853513,-1236.21,0.00016712,3]
[402429035,1768675853523,-679.86,0.00016712,3]
[402429037,1768675853532,-500.0,0.00016712,3]
[402429039,1768675853541,-500.0,0.00016712,3]
[402429041,1768675853555,-822.44,0.00016712,3]
[402429043,1768675853565,-500.0,0.00016712,3]
[402429045,1768675853574,-500.0,0.00016712,3]
[402429047,1768675853584,-297.49810477,0.00016712,3]
[402429049,1768675853594,-500.0,0.00016712,3]
[402429051,1768675853603,-1263.08,0.00016712,3]
[402429053,1768675853613,-692.88,0.00016712,3]
[402429055,1768675853626,-813.92,0.00016712,3]
[402429057,1768675853636,-500.0,0.00016712,3]
[402429059,1768675853645,-500.0,0.00016712,3]
[402429061,1768675853655,-616.40548762,0.00016712,3]
[402429063,1768675853666,-500.0,0.00016712,3]
[402429065,1768675853675,-773.3,0.00016712,3]
[402429067,1768675853685,-1573.93,0.00016712,3]
[402429069,1768675853701,-500.0,0.00016712,3]
[402429071,1768675853711,-500.0,0.00016712,3]
[402429073,1768675853720,-925.02,0.00016712,3]
[402429075,1768675853730,-500.0,0.00016712,3]
[402429077,1768675853739,-500.0,0.00016712,3]
[402429079,1768675853748,-2551.07,0.00016712,3]
[402429081,1768675853757,-500.0,0.00016712,2]
[402429083,1768675853767,-500.0,0.00016712,3]
[402429085,1768675853776,-500.0,0.00016712,3]
[402429087,1768675853786,-1624.98,0.00016712,3]
[402429089,1768675853795,-500.0,0.00016712,3]
[402429091,1768675853804,-500.0,0.00016712,3]
[402429093,1768675853814,-500.0,0.00016712,3]
[402429095,1768675853823,-824.25,0.00016712,3]
[402429097,1768675853832,-500.0,0.00016712,3]
[402429099,1768675853841,-500.0,0.00016712,3]
[402429101,1768675853852,-1074.68,0.00016712,3]
[402429103,1768675853861,-980.22,0.00016712,3]
[402429105,1768675853871,-500.0,0.00016712,3]
[402429107,1768675853880,-500.0,0.00016712,3]
[402429109,1768675853890,-849.33,0.00016712,3]
[402429111,1768675853899,-500.0,0.00016712,3]
[402429113,1768675853908,-520.11533146,0.00016712,3]
[402429115,1768675853917,-500.0,0.00016712,3]
[402429117,1768675853927,-500.0,0.00016712,3]
[402429118,1768675853936,-500.0,0.00016712,3]
[402429120,1768675853946,-526.11,0.00016712,3]
[402429123,1768675853956,-901.72,0.00016712,3]
[402429125,1768675853966,-982.5,0.00016712,3]
[402429126,1768675853976,-500.0,0.00016712,3]
[402429129,1768675853987,-500.0,0.00016712,3]
[402429131,1768675853996,-682.73,0.00016712,3]
[402429132,1768675854007,-533.96,0.00016712,3]
[402429134,1768675854016,-2396.6,0.00016712,3]
[402429144,1768675854099,-500.0,0.00016712,3]
[402429146,1768675854110,-500.0,0.00016712,3]
[402429148,1768675854119,-1103.35,0.00016712,3]
[402429150,1768675854129,-738.3,0.00016712,3]
[402429151,1768675854138,-702.8,0.00016712,3]
[402429153,1768675854147,-823.13,0.00016712,3]
[402429155,1768675854156,-1173.22,0.00016712,3]
[402429157,1768675854166,-500.0,0.00016712,3]
[402429159,1768675854175,-500.0,0.00016712,3]
[402429161,1768675854185,-500.0,0.00016712,3]
[402429163,1768675854194,-500.0,0.00016712,3]
[402429165,1768675854204,-500.0,0.00016712,3]
[402429167,1768675854213,-7250.78,0.00016712,3]
[402429169,1768675854223,-552.93,0.00016712,3]
[402429171,1768675854232,-1399.24,0.00016712,3]
[402429173,1768675854241,-1148.17,0.00016712,3]
[402429175,1768675854251,-500.0,0.00016712,3]
[402429177,1768675854262,-500.0,0.00016712,3]
[402429179,1768675854272,-3131.96,0.00016712,3]
[402429181,1768675854282,-876.59,0.00016712,3]
[402429183,1768675854291,-580.93,0.00016712,3]
[402429185,1768675854301,-1568.81,0.00016712,3]
[402429187,1768675854310,-500.0,0.00016712,3]
[402429189,1768675854319,-500.0,0.00016712,3]
[402429191,1768675854328,-1569.6,0.00016712,3]
[402429193,1768675854337,-500.0,0.00016712,3]
[402429195,1768675854347,-1045.69,0.00016712,3]
[402429197,1768675854356,-500.0,0.00016712,3]
[402429199,1768675854366,-2897.63,0.00016712,3]
[402429201,1768675854375,-1000.0,0.00016712,2]
[402429203,1768675854386,-500.0,0.00016712,3]
[402429205,1768675854395,-500.0,0.00016712,3]
[402429207,1768675854404,-2015.39,0.00016712,3]
[402429209,1768675854413,-500.0,0.00016712,2]
[402429211,1768675854422,-500.0,0.00016712,3]
[402429213,1768675854431,-500.0,0.00016712,3]
[402429215,1768675854440,-1285.11,0.00016712,3]
[402429217,1768675854449,-585.26,0.00016712,3]
[402429219,1768675854458,-500.0,0.00016712,3]
[402429221,1768675854467,-1023.93,0.00016712,3]
[402429223,1768675854476,-14376.21,0.00016712,3]
[402429225,1768675854484,-500.0,0.00016712,3]
[402429227,1768675854494,-1321.15,0.00016712,3]
[402429229,1768675854502,-500.0,0.00016712,3]
[402429231,1768675854511,-500.0,0.00016712,3]
[402429233,1768675854520,-1071.96,0.00016712,3]
[402429235,1768675854530,-785.27,0.00016712,3]
[402429237,1768675854539,-539.32,0.00016712,3]
[402429239,1768675854548,-500.0,0.00016712,2]
[402429241,1768675854557,-168.0,0.00016773,2]
[402429243,1768675854566,-3987.0,0.00016858,2]
[402429245,1768675854576,-168.0,0.00016905,2]
[402429247,1768675854585,-168.0,0.00016953,2]
[402429249,1768675854595,-1041.66666667,0.00016982,2]
[402429251,1768675854604,-168.0,0.00016985,2]
[402429253,1768675854613,-606.47,0.00016986,3]
[402429255,1768675854623,-500.0,0.00016986,3]
[402429257,1768675854632,-500.0,0.00016986,3]
[402429258,1768675854641,-500.0,0.00016986,3]
[402429260,1768675854649,-500.0,0.00016986,3]
[402429263,1768675854659,-500.0,0.00016986,3]
[402429264,1768675854668,-500.0,0.00016986,3]
[402429266,1768675854679,-500.0,0.00016986,3]
[402429268,1768675854689,-500.0,0.00016986,3]
[402429270,1768675854700,-500.0,0.00016986,3]
[402429272,1768675854709,-785.35,0.00016986,3]
[402429274,1768675854718,-500.0,0.00016986,3]
[402429276,1768675854727,-500.0,0.00016986,3]
[402429278,1768675854736,-564.1083671,0.00016986,3]
[402429280,1768675854745,-958.0,0.00016986,3]
[402429282,1768675854755,-945.0,0.00016986,3]
[402429284,1768675854765,-500.0,0.00016986,3]
[402429286,1768675854774,-500.0,0.00016986,3]
[402429288,1768675854783,-500.0,0.00016986,3]
[402429290,1768675854792,-500.0,0.00016986,3]
[402429292,1768675854801,-500.0,0.00016986,3]
[402429294,1768675854810,-500.0,0.00016986,3]
[402429296,1768675854819,-500.0,0.00016986,3]
[402429298,1768675854828,-500.0,0.00016986,3]
[402429300,1768675854836,-500.0,0.00016986,3]
[402429302,1768675854846,-500.0,0.00016986,3]
[402429304,1768675854855,-500.0,0.00016986,3]
[402429306,1768675854863,-500.0,0.00016986,3]
[402429308,1768675854872,-500.0,0.00016986,3]
[402429310,1768675854881,-660.71,0.00016986,3]
[402429312,1768675854890,-500.0,0.00016986,3]
[402429314,1768675854899,-717.86,0.00016986,3]
[402429316,1768675854908,-500.0,0.00016986,3]
[402429318,1768675854917,-586.64,0.00016986,3]
[402429320,1768675854926,-1050.44,0.00016986,3]
[402429322,1768675854934,-500.0,0.00016986,3]
[402429324,1768675854943,-500.0,0.00016986,3]
[402429326,1768675854952,-748.64,0.00016986,3]
[402429327,1768675854961,-500.0,0.00016986,3]
[402429329,1768675854970,-500.0,0.00016986,3]
[402429331,1768675854979,-500.0,0.00016986,3]
[402429333,1768675854988,-500.0,0.00016986,3]
[402429335,1768675854998,-824.78,0.00016986,3]
[402429337,1768675855007,-500.0,0.00016986,3]
[402429339,1768675855016,-500.0,0.00016986,3]
[402429341,1768675855025,-500.0,0.00016986,3]
[402429343,1768675855035,-500.0,0.00016986,3]
[402429345,1768675855044,-489.41292271,0.00016986,3]
[402429347,1768675855053,-629.37,0.00016986,3]
[402429349,1768675855062,-618.03,0.00016986,3]
[402429351,1768675855072,-500.0,0.00016986,3]
[402429353,1768675855080,-500.0,0.00016986,3]
[402429355,1768675855089,-785.43,0.00016986,3]
[402429357,1768675855098,-1229.27,0.00016986,3]
[402429359,1768675855107,-500.0,0.00016986,3]
[402429361,1768675855117,-503.99,0.00016986,3]
[402429363,1768675855127,-500.0,0.00016986,3]
[402429365,1768675855136,-1332.53,0.00016986,3]
[402429367,1768675855146,-500.0,0.00016986,3]
[402429370,1768675855157,-500.0,0.00016986,3]
[402429371,1768675855167,-500.0,0.00016986,3]
[402429373,1768675855176,-1544.82,0.00016986,3]
[402429376,1768675855186,-500.0,0.00016986,3]
[402429377,1768675855195,-500.0,0.00016986,3]
[402429379,1768675855204,-500.0,0.00016986,3]
[402429381,1768675855213,-500.0,0.00016986,3]
[402429383,1768675855222,-500.0,0.00016986,3]
[402429385,1768675855231,-500.0,0.00016986,3]
[402429387,1768675855240,-500.0,0.00016986,3]
[402429389,1768675855250,-724.87,0.00016986,3]
[402429391,1768675855259,-500.0,0.00016986,3]
[402429393,1768675855269,-500.0,0.00016986,3]
[402429395,1768675855278,-674.95746037,0.00016986,3]
[402429397,1768675855287,-500.0,0.00016986,3]
[402429399,1768675855296,-686.6,0.00016986,3]
[402429401,1768675855305,-500.0,0.00016986,3]
[402429403,1768675855314,-1363.3,0.00016986,3]
[402429404,1768675855323,-500.0,0.00016986,3]
[402429405,1768675855332,-500.0,0.00016986,3]
[402429406,1768675855341,-500.0,0.00016986,3]
[402429407,1768675855349,-500.0,0.00016986,3]
[402429408,1768675855358,-435.32524061,0.00016986,3]
[402429409,1768675855367,-500.0,0.00016986,3]
[402429410,1768675855376,-500.0,0.00016986,3]
[402429411,1768675855384,-500.0,0.00016986,3]
[402429412,1768675855393,-500.0,0.00016986,3]
[402429413,1768675855401,-500.0,0.00016986,3]
[402429414,1768675855410,-1486.35,0.00016986,3]
[402429415,1768675855418,-344.19716838,0.00016986,3]
[402429416,1768675855427,-500.0,0.00016986,3]
[402429417,1768675855436,-565.26,0.00016986,3]
[402429418,1768675855445,-500.0,0.00016986,3]
[402429419,1768675855454,-1421.58,0.00016986,3]
[402429420,1768675855463,-500.0,0.00016986,3]
[402429421,1768675855472,-500.0,0.00016986,3]
[402429422,1768675855481,-895.06,0.00016986,3]
[402429423,1768675855489,-646.41,0.00016986,3]
[402429424,1768675855498,-500.0,0.00016986,3]
[402429425,1768675855507,-500.0,0.00016986,3]
[402429426,1768675855515,-996.79,0.00016986,3]
[402429427,1768675855524,-764.09,0.00016986,3]
[402429428,1768675855532,-525.18,0.00016986,3]
[402429429,1768675855541,-716.74,0.00016986,3]
[402429430,1768675855550,-500.0,0.00016986,3]
[402429431,1768675855558,-1323.24,0.00016986,3]
[402429432,1768675855567,-500.0,0.00016986,3]
[402429433,1768675855575,-500.0,0.00016986,3]
[402429434,1768675855584,-770.45,0.00016986,3]
[402429435,1768675855592,-500.0,0.00016986,3]
[402429436,1768675855601,-500.0,0.00016986,3]
[402429437,1768675855610,-500.0,0.00016986,3]
[402429438,1768675855622,-500.0,0.00016986,3]
[402429439,1768675855631,-500.0,0.00016986,3]
[402429440,1768675855640,-1407.33,0.00016986,3]
[402429441,1768675855649,-632.04,0.00016986,3]
[402429443,1768675855659,-931.88,0.00016986,3]
[402429445,1768675855667,-1247.83,0.00016986,3]
[402429447,1768675855676,-500.0,0.00016986,3]
[402429449,1768675855686,-500.0,0.00016986,3]
[402429450,1768675855699,-1206.36,0.00016986,3]
[402429452,1768675855709,-505.92,0.00016986,3]
[402429454,1768675855718,-500.0,0.00016986,3]
[402429456,1768675855727,-500.0,0.00016986,3]
[402429458,1768675855736,-158.66112729,0.00016986,3]
[402429460,1768675855745,-538.41,0.00016986,3]
[402429462,1768675855753,-500.0,0.00016986,3]
[402429464,1768675855763,-500.0,0.00016986,3]
[402429466,1768675855772,-500.0,0.00016986,3]
[402429468,1768675855781,-1150.55,0.00016986,3]
[402429470,1768675855791,-500.0,0.00016986,3]
[402429472,1768675855800,-500.0,0.00016986,3]
[402429474,1768675855810,-529.66608909,0.00016986,3]
[402429476,1768675855819,-989.09,0.00016986,3]
[402429478,1768675855828,-500.0,0.00016986,3]
[402429480,1768675855837,-975.59,0.00016986,3]
[402429482,1768675855846,-480.06845953,0.00016986,3]
[402429484,1768675855855,-1116.5,0.00016986,3]
[402429486,1768675855864,-500.0,0.00016986,3]